[Event "Titled Tuesday Blitz June 14 Early 2022"]
[White "Terry, Renato"]
[Black "Nakamura, Hikaru"]
[WhiteFideId "3803457"]
[BlackFideId "2016192"]
[WhiteElo "2577"]
[BlackElo "2850"]
[Result "1/2-1/2"]
[Round "09"]
[TimeControl "180+1"]
[Date "2022.06.14"]
[WhiteClock "0:00:03"]
[BlackClock "0:00:07"]

1. d4 {[%clk 0:03:00]}  f5 {[%clk 0:02:52]} 2. Bg5 {[%clk 0:03:00]}  c6 {[%clk 0:02:52]} 3. c4 {[%clk 0:02:56]}  d6 {[%clk 0:02:50]} 4. Nc3 {[%clk 0:02:56]}  Nf6 {[%clk 0:02:51]} 5. Bxf6 {[%clk 0:02:55]}  exf6 {[%clk 0:02:51]} 6. g3 {[%clk 0:02:55]}  Be6 {[%clk 0:02:49]} 7. e3 {[%clk 0:02:49]}  Bf7 {[%clk 0:02:48]} 8. h4 {[%clk 0:02:47]}  g6 {[%clk 0:02:47]} 9. Nh3 {[%clk 0:02:47]}  h5 {[%clk 0:02:44]} 10. Nf4 {[%clk 0:02:46]}  Bh6 {[%clk 0:02:44]} 11. Bd3 {[%clk 0:02:46]}  Nd7 {[%clk 0:02:44]} 12. b4 {[%clk 0:02:42]}  Qe7 {[%clk 0:02:43]} 13. Qc2 {[%clk 0:02:32]}  a5 {[%clk 0:02:24]} 14. b5 {[%clk 0:02:18]}  Bxf4 {[%clk 0:02:24]} 15. gxf4 {[%clk 0:02:18]}  O-O {[%clk 0:02:20]} 16. bxc6 {[%clk 0:02:12]}  bxc6 {[%clk 0:02:20]} 17. Rb1 {[%clk 0:02:12]}  Rfb8 {[%clk 0:02:18]} 18. O-O {[%clk 0:02:05]}  Qd8 {[%clk 0:02:09]} 19. Na4 {[%clk 0:01:39]}  Be8 {[%clk 0:01:54]} 20. Rxb8 {[%clk 0:01:38]}  Rxb8 {[%clk 0:01:53]} 21. Rb1 {[%clk 0:01:39]}  c5 {[%clk 0:01:52]} 22. Nc3 {[%clk 0:01:08]}  cxd4 {[%clk 0:01:45]} 23. exd4 {[%clk 0:01:09]}  Bf7 {[%clk 0:01:44]} 24. Rb5 {[%clk 0:00:54]}  Rxb5 {[%clk 0:01:36]} 25. cxb5 {[%clk 0:00:55]}  Qc7 {[%clk 0:01:33]} 26. a3 {[%clk 0:00:47]}  Kf8 {[%clk 0:01:26]} 27. Na4 {[%clk 0:00:36]}  Qxc2 {[%clk 0:01:23]} 28. Bxc2 {[%clk 0:00:37]}  Ke7 {[%clk 0:01:21]} 29. Kg2 {[%clk 0:00:32]}  Bc4 {[%clk 0:01:13]} 30. Nc3 {[%clk 0:00:31]}  Nb6 {[%clk 0:01:14]} 31. Kf3 {[%clk 0:00:29]}  Kd7 {[%clk 0:01:12]} 32. Ke3 {[%clk 0:00:29]}  Kc7 {[%clk 0:01:09]} 33. a4 {[%clk 0:00:22]}  Bf7 {[%clk 0:01:07]} 34. Ke2 {[%clk 0:00:16]}  Nc8 {[%clk 0:01:04]} 35. Kd2 {[%clk 0:00:13]}  Nb6 {[%clk 0:01:02]} 36. Bd1 {[%clk 0:00:14]}  Bd5 {[%clk 0:00:57]} 37. Bc2 {[%clk 0:00:12]}  Kd7 {[%clk 0:00:57]} 38. Ke2 {[%clk 0:00:10]}  Bc4+ {[%clk 0:00:54]} 39. Ke3 {[%clk 0:00:10]}  Ke7 {[%clk 0:00:53]} 40. Kd2 {[%clk 0:00:10]}  Kf8 {[%clk 0:00:52]} 41. Ke3 {[%clk 0:00:11]}  Kg7 {[%clk 0:00:52]} 42. Kf3 {[%clk 0:00:08]}  Be6 {[%clk 0:00:50]} 43. Ke3 {[%clk 0:00:08]}  Kh6 {[%clk 0:00:50]} 44. f3 {[%clk 0:00:04]}  g5 {[%clk 0:00:49]} 45. fxg5+ {[%clk 0:00:04]}  fxg5 {[%clk 0:00:50]} 46. d5 {[%clk 0:00:05]}  Bc8 {[%clk 0:00:40]} 47. hxg5+ {[%clk 0:00:04]}  Kxg5 {[%clk 0:00:41]} 48. f4+ {[%clk 0:00:05]}  Kg6 {[%clk 0:00:39]} 49. Bd1 {[%clk 0:00:04]}  h4 {[%clk 0:00:38]} 50. Bf3 {[%clk 0:00:04]}  Bd7 {[%clk 0:00:37]} 51. Kd4 {[%clk 0:00:04]}  Kf6 {[%clk 0:00:37]} 52. Kd3 {[%clk 0:00:04]}  Be8 {[%clk 0:00:37]} 53. Kd4 {[%clk 0:00:04]}  Bf7 {[%clk 0:00:37]} 54. Ke3 {[%clk 0:00:03]}  Kg7 {[%clk 0:00:37]} 55. Kf2 {[%clk 0:00:04]}  Kh6 {[%clk 0:00:10]} 56. Kg2 {[%clk 0:00:04]}  Bg6 {[%clk 0:00:09]} 57. Kh3 {[%clk 0:00:04]}  Bh5 {[%clk 0:00:09]} 58. Bg2 {[%clk 0:00:03]}  Bf7 {[%clk 0:00:04]} 59. Kxh4 {[%clk 0:00:03]}  Bh5 {[%clk 0:00:05]} 60. Bh1 {[%clk 0:00:03]}  Bg4 {[%clk 0:00:04]} 61. Kg3 {[%clk 0:00:03]}  Bh5 {[%clk 0:00:05]} 62. Bf3 {[%clk 0:00:03]}  Bf7 {[%clk 0:00:05]} 63. Kf2 {[%clk 0:00:03]}  Kg7 {[%clk 0:00:06]} 64. Ke3 {[%clk 0:00:04]}  Kf6 {[%clk 0:00:07]} 65. Kd4 {[%clk 0:00:04]}  Ke7 {[%clk 0:00:08]} 66. Bd1 {[%clk 0:00:04]}  Be8 {[%clk 0:00:08]} 67. Bc2 {[%clk 0:00:05]}  Bd7 {[%clk 0:00:09]} 68. Bb3 {[%clk 0:00:06]}  Kd8 {[%clk 0:00:08]} 69. Nd1 {[%clk 0:00:06]}  Ke7 {[%clk 0:00:08]} 70. Ne3 {[%clk 0:00:07]}  Kd8 {[%clk 0:00:04]} 71. Bc2 {[%clk 0:00:07]}  Kc7 {[%clk 0:00:05]} 72. Kc3 {[%clk 0:00:04]}  Bc8 {[%clk 0:00:05]} 73. Kb3 {[%clk 0:00:04]}  Bb7 {[%clk 0:00:05]} 74. Bxf5 {[%clk 0:00:04]}  Bxd5+ {[%clk 0:00:05]} 75. Ka3 {[%clk 0:00:04]}  Bf7 {[%clk 0:00:06]} 76. Bd3 {[%clk 0:00:04]}  d5 {[%clk 0:00:07]} 77. Nf5 {[%clk 0:00:03]}  Bg6 {[%clk 0:00:06]} 78. Kb3 {[%clk 0:00:04]}  d4 {[%clk 0:00:07]} 79. Kc2 {[%clk 0:00:03]}  Bxf5 {[%clk 0:00:06]} 80. Bxf5 {[%clk 0:00:04]}  Nd5 {[%clk 0:00:06]} 81. Kd3 {[%clk 0:00:04]}  Nxf4+ {[%clk 0:00:07]} 82. Kxd4 {[%clk 0:00:04]}  Kb6 {[%clk 0:00:07]} 83. Bg4 {[%clk 0:00:04]}  Ng6 {[%clk 0:00:07]} 84. Bf5 {[%clk 0:00:04]}  Nf4 {[%clk 0:00:06]} 85. Bg4 {[%clk 0:00:03]}  Ng6 {[%clk 0:00:07]} 86. Bf5 {[%clk 0:00:03]}  Nf4 {[%clk 0:00:07]} 1/2-1/2


[Site "https://www.chess.com"]

[Event "Titled Tuesday Blitz June 14 Early 2022"]
[White "Bharath Subramaniyam H"]
[Black "Bluebaum, Matthias"]
[WhiteFideId "46634827"]
[BlackFideId "24651516"]
[WhiteElo "2242"]
[BlackElo "2556"]
[Result "1-0"]
[Round "10"]
[TimeControl "180+1"]
[Date "2022.06.14"]
[WhiteClock "0:02:15"]
[BlackClock "0:01:39"]

1. c4 {[%clk 0:03:00]}  e6 {[%clk 0:02:57]} 2. Nc3 {[%clk 0:02:59]}  d5 {[%clk 0:02:58]} 3. d4 {[%clk 0:03:00]}  Nf6 {[%clk 0:02:59]} 4. Bg5 {[%clk 0:03:00]}  dxc4 {[%clk 0:02:58]} 5. e3 {[%clk 0:02:59]}  c5 {[%clk 0:02:55]} 6. Nf3 {[%clk 0:02:58]}  cxd4 {[%clk 0:02:53]} 7. Nxd4 {[%clk 0:02:53]}  Be7 {[%clk 0:02:53]} 8. Bxc4 {[%clk 0:02:53]}  O-O {[%clk 0:02:52]} 9. O-O {[%clk 0:02:54]}  a6 {[%clk 0:02:53]} 10. Be2 {[%clk 0:02:52]}  h6 {[%clk 0:02:37]} 11. Bf4 {[%clk 0:02:51]}  Nbd7 {[%clk 0:02:35]} 12. Bg3 {[%clk 0:02:49]}  Nc5 {[%clk 0:02:16]} 13. Bf3 {[%clk 0:02:48]}  e5 {[%clk 0:02:14]} 14. Bxe5 {[%clk 0:02:45]}  Be6 {[%clk 0:02:02]} 15. Nxe6 {[%clk 0:02:37]}  fxe6 {[%clk 0:01:50]} 16. Bd4 {[%clk 0:02:17]}  Nfd7 {[%clk 0:01:39]} 17. b4 {[%clk 0:02:15]} 1-0


[Site "https://www.chess.com"]

[Event "Titled Tuesday Blitz June 14 Early 2022"]
[White "Cherniaiev, Tykhon"]
[Black "Samadov, Read"]
[WhiteFideId "14182360"]
[BlackFideId "13417444"]
[WhiteElo "2289"]
[BlackElo "2084"]
[Result "0-1"]
[Round "10"]
[TimeControl "180+1"]
[Date "2022.06.14"]
[WhiteClock "0:02:02"]
[BlackClock "0:01:35"]

1. Nf3 {[%clk 0:03:00]}  Nf6 {[%clk 0:02:57]} 2. d4 {[%clk 0:02:57]}  e6 {[%clk 0:02:57]} 3. c4 {[%clk 0:02:56]}  d5 {[%clk 0:02:57]} 4. g3 {[%clk 0:02:57]}  Bb4+ {[%clk 0:02:57]} 5. Bd2 {[%clk 0:02:56]}  Be7 {[%clk 0:02:56]} 6. Qc2 {[%clk 0:02:56]}  O-O {[%clk 0:02:56]} 7. Bg2 {[%clk 0:02:57]}  Nbd7 {[%clk 0:02:56]} 8. O-O {[%clk 0:02:56]}  c6 {[%clk 0:02:56]} 9. b3 {[%clk 0:02:56]}  b6 {[%clk 0:02:56]} 10. Nc3 {[%clk 0:02:56]}  Ba6 {[%clk 0:02:53]} 11. e4 {[%clk 0:02:54]}  dxc4 {[%clk 0:02:51]} 12. e5 {[%clk 0:02:52]}  Nd5 {[%clk 0:02:45]} 13. bxc4 {[%clk 0:02:47]}  Bxc4 {[%clk 0:02:44]} 14. Rfd1 {[%clk 0:02:45]}  Nxc3 {[%clk 0:02:40]} 15. Bxc3 {[%clk 0:02:44]}  Bd5 {[%clk 0:02:41]} 16. h4 {[%clk 0:02:44]}  h6 {[%clk 0:02:40]} 17. a4 {[%clk 0:02:41]}  c5 {[%clk 0:02:39]} 18. dxc5 {[%clk 0:02:41]}  Bxc5 {[%clk 0:02:33]} 19. Nd4 {[%clk 0:02:41]}  Bxg2 {[%clk 0:02:32]} 20. Kxg2 {[%clk 0:02:42]}  Qc7 {[%clk 0:02:30]} 21. Nb5 {[%clk 0:02:38]}  Qc6+ {[%clk 0:02:29]} 22. Kg1 {[%clk 0:02:35]}  a6 {[%clk 0:02:27]} 23. Nd6 {[%clk 0:02:36]}  Rfd8 {[%clk 0:02:21]} 24. Qe2 {[%clk 0:02:34]}  Bxd6 {[%clk 0:02:19]} 25. Rxd6 {[%clk 0:02:31]}  Qxc3 {[%clk 0:02:19]} 26. Rad1 {[%clk 0:02:31]}  Qc7 {[%clk 0:02:12]} 27. Qd2 {[%clk 0:02:30]}  Ra7 {[%clk 0:02:05]} 28. Rc1 {[%clk 0:02:21]}  Qb8 {[%clk 0:02:01]} 29. Rd1 {[%clk 0:02:21]}  b5 {[%clk 0:02:01]} 30. Qa5 {[%clk 0:02:17]}  bxa4 {[%clk 0:01:55]} 31. Qxa4 {[%clk 0:02:17]}  Qb5 {[%clk 0:01:53]} 32. Qd4 {[%clk 0:02:13]}  Rb7 {[%clk 0:01:53]} 33. Qc3 {[%clk 0:02:10]}  Rdb8 {[%clk 0:01:49]} 34. Qc2 {[%clk 0:02:05]}  a5 {[%clk 0:01:42]} 35. h5 {[%clk 0:02:05]}  a4 {[%clk 0:01:40]} 36. R1d3 {[%clk 0:02:02]}  Qb1+ {[%clk 0:01:37]} 37. Qxb1 {[%clk 0:02:01]}  Rxb1+ {[%clk 0:01:38]} 38. Kg2 {[%clk 0:02:02]}  Nxe5 {[%clk 0:01:39]} 39. Ra3 {[%clk 0:02:01]}  Nc4 {[%clk 0:01:38]} 40. Rxa4 {[%clk 0:02:02]}  Nxd6 {[%clk 0:01:39]} 41. Rd4 {[%clk 0:02:02]}  Nf5 {[%clk 0:01:38]} 42. Rf4 {[%clk 0:02:02]}  R1b2 {[%clk 0:01:38]} 43. g4 {[%clk 0:02:02]}  Ne7 {[%clk 0:01:38]} 44. g5 {[%clk 0:02:02]}  hxg5 {[%clk 0:01:38]} 45. Rg4 {[%clk 0:02:02]}  R8b5 {[%clk 0:01:38]} 46. Rg3 {[%clk 0:02:02]}  Rf5 {[%clk 0:01:38]} 47. Kg1 {[%clk 0:02:01]}  Rfxf2 {[%clk 0:01:38]} 48. Rc3 {[%clk 0:02:02]}  Rfd2 {[%clk 0:01:38]} 49. Rc1 {[%clk 0:02:02]}  Nf5 {[%clk 0:01:38]} 50. h6 {[%clk 0:02:02]}  Ng3 {[%clk 0:01:37]} 51. Rc8+ {[%clk 0:02:02]}  Kh7 {[%clk 0:01:35]} 52. Rh8+ {[%clk 0:02:02]}  Kg6 {[%clk 0:01:35]} 53. hxg7 {[%clk 0:02:02]}  Rd1# {[%clk 0:01:35]} 0-1


[Site "https://www.chess.com"]

[Event "Titled Tuesday Blitz June 14 Early 2022"]
[White "Gunina, Valentina"]
[Black "Tica, Sven"]
[WhiteFideId "4167570"]
[BlackFideId "14526948"]
[WhiteElo "2386"]
[BlackElo "2346"]
[Result "1-0"]
[Round "10"]
[TimeControl "180+1"]
[Date "2022.06.14"]
[WhiteClock "0:02:11"]
[BlackClock "0:00:49"]

1. d4 {[%clk 0:03:00]}  d5 {[%clk 0:02:59]} 2. c4 {[%clk 0:03:01]}  e6 {[%clk 0:03:00]} 3. Nf3 {[%clk 0:03:01]}  Nf6 {[%clk 0:03:00]} 4. Nc3 {[%clk 0:03:01]}  Nbd7 {[%clk 0:03:00]} 5. Bf4 {[%clk 0:03:01]}  dxc4 {[%clk 0:03:00]} 6. e3 {[%clk 0:02:59]}  Nb6 {[%clk 0:03:00]} 7. Bxc4 {[%clk 0:02:59]}  Nxc4 {[%clk 0:03:01]} 8. Qa4+ {[%clk 0:02:59]}  c6 {[%clk 0:03:02]} 9. Qxc4 {[%clk 0:03:00]}  Nd5 {[%clk 0:03:02]} 10. O-O {[%clk 0:03:00]}  Nxf4 {[%clk 0:03:01]} 11. exf4 {[%clk 0:03:00]}  Qb6 {[%clk 0:02:59]} 12. a3 {[%clk 0:02:55]}  Be7 {[%clk 0:02:57]} 13. Rfe1 {[%clk 0:02:55]}  O-O {[%clk 0:02:57]} 14. Ne5 {[%clk 0:02:55]}  Rd8 {[%clk 0:02:53]} 15. Red1 {[%clk 0:02:52]}  Bd7 {[%clk 0:02:45]} 16. f5 {[%clk 0:02:52]}  Bc8 {[%clk 0:02:32]} 17. Rd3 {[%clk 0:02:51]}  Bf6 {[%clk 0:02:31]} 18. Re1 {[%clk 0:02:46]}  Qa6 {[%clk 0:01:35]} 19. Qxa6 {[%clk 0:02:45]}  bxa6 {[%clk 0:01:36]} 20. Nxc6 {[%clk 0:02:45]}  Rd6 {[%clk 0:01:35]} 21. d5 {[%clk 0:02:45]}  Bb7 {[%clk 0:01:29]} 22. Ne4 {[%clk 0:02:34]}  Bxc6 {[%clk 0:01:25]} 23. Nxd6 {[%clk 0:02:33]}  Bxd5 {[%clk 0:01:26]} 24. fxe6 {[%clk 0:02:31]}  fxe6 {[%clk 0:01:25]} 25. b4 {[%clk 0:02:31]}  Rb8 {[%clk 0:01:11]} 26. Ne4 {[%clk 0:02:31]}  Be7 {[%clk 0:01:11]} 27. Nc3 {[%clk 0:02:30]}  Bc4 {[%clk 0:01:11]} 28. Rd4 {[%clk 0:02:29]}  Rc8 {[%clk 0:01:11]} 29. Rd7 {[%clk 0:02:28]}  Bf6 {[%clk 0:01:10]} 30. Ne4 {[%clk 0:02:28]}  Be5 {[%clk 0:01:07]} 31. Nc5 {[%clk 0:02:27]}  Bc3 {[%clk 0:01:04]} 32. Re3 {[%clk 0:02:27]}  Bb5 {[%clk 0:00:59]} 33. Rd6 {[%clk 0:02:21]}  Bf6 {[%clk 0:00:55]} 34. h3 {[%clk 0:02:18]}  a5 {[%clk 0:00:55]} 35. Rdxe6 {[%clk 0:02:18]}  axb4 {[%clk 0:00:55]} 36. axb4 {[%clk 0:02:18]}  a5 {[%clk 0:00:55]} 37. Ne4 {[%clk 0:02:17]}  Rc1+ {[%clk 0:00:50]} 38. Kh2 {[%clk 0:02:17]}  Bd4 {[%clk 0:00:51]} 39. Ra3 {[%clk 0:02:11]}  axb4 {[%clk 0:00:49]} 40. Ra8+ {[%clk 0:02:11]}  Kf7 {[%clk 0:00:49]} 41. Ng5# {[%clk 0:02:11]} 1-0


[Site "https://www.chess.com"]

[Event "Titled Tuesday Blitz June 14 Early 2022"]
[White "Hakobyan, Aram"]
[Black "Andreikin, Dmitry"]
[WhiteFideId "13306677"]
[BlackFideId "4158814"]
[WhiteElo "2557"]
[BlackElo "2736"]
[Result "0-1"]
[Round "10"]
[TimeControl "180+1"]
[Date "2022.06.14"]
[WhiteClock "0:00:04"]
[BlackClock "0:00:11"]

1. d4 {[%clk 0:03:00]}  d5 {[%clk 0:02:58]} 2. Nf3 {[%clk 0:03:00]}  Nf6 {[%clk 0:02:58]} 3. c3 {[%clk 0:03:00]}  Bf5 {[%clk 0:02:56]} 4. Qb3 {[%clk 0:03:00]}  Qc8 {[%clk 0:02:57]} 5. c4 {[%clk 0:03:00]}  dxc4 {[%clk 0:02:57]} 6. Qxc4 {[%clk 0:02:59]}  e6 {[%clk 0:02:57]} 7. Nc3 {[%clk 0:02:58]}  Nbd7 {[%clk 0:02:55]} 8. Bf4 {[%clk 0:02:55]}  Nb6 {[%clk 0:02:51]} 9. Qb3 {[%clk 0:02:41]}  Bd6 {[%clk 0:02:46]} 10. Bg3 {[%clk 0:02:37]}  O-O {[%clk 0:02:44]} 11. e3 {[%clk 0:02:37]}  Bxg3 {[%clk 0:02:41]} 12. hxg3 {[%clk 0:02:38]}  c5 {[%clk 0:02:41]} 13. Rd1 {[%clk 0:02:29]}  c4 {[%clk 0:02:36]} 14. Qb5 {[%clk 0:02:21]}  Nfd5 {[%clk 0:02:29]} 15. Ne5 {[%clk 0:01:59]}  Qc7 {[%clk 0:01:53]} 16. g4 {[%clk 0:01:53]}  Bg6 {[%clk 0:01:30]} 17. Nxg6 {[%clk 0:00:53]}  hxg6 {[%clk 0:01:31]} 18. e4 {[%clk 0:00:36]}  Nxc3 {[%clk 0:01:12]} 19. bxc3 {[%clk 0:00:37]}  Qf4 {[%clk 0:01:10]} 20. Be2 {[%clk 0:00:36]}  Qxe4 {[%clk 0:01:06]} 21. Qg5 {[%clk 0:00:36]}  Nd5 {[%clk 0:00:53]} 22. Kf1 {[%clk 0:00:12]}  Nxc3 {[%clk 0:00:33]} 23. Bf3 {[%clk 0:00:12]}  Qc2 {[%clk 0:00:34]} 24. Re1 {[%clk 0:00:09]}  Rae8 {[%clk 0:00:22]} 25. Qh4 {[%clk 0:00:06]}  f6 {[%clk 0:00:22]} 26. g5 {[%clk 0:00:07]}  f5 {[%clk 0:00:19]} 27. Qh7+ {[%clk 0:00:07]}  Kf7 {[%clk 0:00:19]} 28. Rh6 {[%clk 0:00:08]}  f4 {[%clk 0:00:19]} 29. Rxg6 {[%clk 0:00:07]}  Qxg6 {[%clk 0:00:11]} 30. Bh5 {[%clk 0:00:08]}  Qxh5 {[%clk 0:00:11]} 31. Qxh5+ {[%clk 0:00:08]}  Ke7 {[%clk 0:00:12]} 32. Qg6 {[%clk 0:00:07]}  Kd6 {[%clk 0:00:09]} 33. Qxg7 {[%clk 0:00:07]}  Nd5 {[%clk 0:00:10]} 34. Qe5+ {[%clk 0:00:07]}  Kd7 {[%clk 0:00:08]} 35. g6 {[%clk 0:00:07]}  Rg8 {[%clk 0:00:08]} 36. g7 {[%clk 0:00:07]}  Re7 {[%clk 0:00:08]} 37. Rc1 {[%clk 0:00:03]}  c3 {[%clk 0:00:09]} 38. Rb1 {[%clk 0:00:02]}  b6 {[%clk 0:00:09]} 39. Rb5 {[%clk 0:00:03]}  Rgxg7 {[%clk 0:00:08]} 40. Rxd5+ {[%clk 0:00:03]}  exd5 {[%clk 0:00:09]} 41. Qxd5+ {[%clk 0:00:04]}  Kc8 {[%clk 0:00:09]} 42. Qa8+ {[%clk 0:00:04]}  Kc7 {[%clk 0:00:09]} 43. Qxa7+ {[%clk 0:00:03]}  Kc6 {[%clk 0:00:10]} 44. Qa4+ {[%clk 0:00:03]}  Kd5 {[%clk 0:00:10]} 45. Qb3+ {[%clk 0:00:01]}  Kxd4 {[%clk 0:00:11]} 46. Qb4+ {[%clk 0:00:02]}  Kd3 {[%clk 0:00:11]} 47. Qb5+ {[%clk 0:00:02]}  Kd2 {[%clk 0:00:10]} 48. Qd5+ {[%clk 0:00:01]}  Kc1 {[%clk 0:00:10]} 49. Qd4 {[%clk 0:00:02]}  Rc7 {[%clk 0:00:10]} 50. Qxf4+ {[%clk 0:00:02]}  Kb2 {[%clk 0:00:10]} 51. Qb4+ {[%clk 0:00:03]}  Kxa2 {[%clk 0:00:09]} 52. Qa4+ {[%clk 0:00:03]}  Kb2 {[%clk 0:00:10]} 53. Qb4+ {[%clk 0:00:03]}  Kc2 {[%clk 0:00:10]} 54. Qe4+ {[%clk 0:00:04]}  Kb3 {[%clk 0:00:11]} 55. Qe6+ {[%clk 0:00:04]}  Ka3 {[%clk 0:00:10]} 56. Qd6+ {[%clk 0:00:03]}  Ka4 {[%clk 0:00:10]} 57. Qd4+ {[%clk 0:00:02]}  Ka5 {[%clk 0:00:10]} 58. Qe5+ {[%clk 0:00:01]}  Ka6 {[%clk 0:00:10]} 59. Qe2+ {[%clk 0:00:02]}  b5 {[%clk 0:00:10]} 60. Qa2+ {[%clk 0:00:02]}  Kb6 {[%clk 0:00:10]} 61. Qe6+ {[%clk 0:00:03]}  Rc6 {[%clk 0:00:10]} 62. Qe3+ {[%clk 0:00:03]}  Ka6 {[%clk 0:00:11]} 63. Qe8 {[%clk 0:00:02]}  Rgc7 {[%clk 0:00:11]} 64. Qa8+ {[%clk 0:00:03]}  Kb6 {[%clk 0:00:11]} 65. Qb8+ {[%clk 0:00:04]}  Ka5 {[%clk 0:00:12]} 66. Qa7+ {[%clk 0:00:04]}  Rxa7 {[%clk 0:00:11]} 0-1


[Site "https://www.chess.com"]

[Event "Titled Tuesday Blitz June 14 Early 2022"]
[White "Iannaccone, Ernesto"]
[Black "Narayanan, Srinath"]
[WhiteFideId "800163"]
[BlackFideId "5018420"]
[WhiteElo "2386"]
[BlackElo "2472"]
[Result "1/2-1/2"]
[Round "10"]
[TimeControl "180+1"]
[Date "2022.06.14"]
[WhiteClock "0:00:02"]
[BlackClock "0:00:18"]

1. d4 {[%clk 0:03:00]}  f5 {[%clk 0:02:58]} 2. g3 {[%clk 0:02:59]}  Nf6 {[%clk 0:02:58]} 3. Bg2 {[%clk 0:02:59]}  g6 {[%clk 0:02:58]} 4. Nh3 {[%clk 0:02:59]}  Bg7 {[%clk 0:02:59]} 5. O-O {[%clk 0:02:59]}  O-O {[%clk 0:02:59]} 6. c4 {[%clk 0:02:58]}  d6 {[%clk 0:03:00]} 7. d5 {[%clk 0:02:58]}  a5 {[%clk 0:02:58]} 8. Nc3 {[%clk 0:02:58]}  Na6 {[%clk 0:02:58]} 9. Nf4 {[%clk 0:02:56]}  Nc5 {[%clk 0:02:58]} 10. Rb1 {[%clk 0:02:53]}  e5 {[%clk 0:02:49]} 11. dxe6 {[%clk 0:02:52]}  c6 {[%clk 0:02:49]} 12. Be3 {[%clk 0:02:43]}  Nxe6 {[%clk 0:02:49]} 13. Nxe6 {[%clk 0:02:37]}  Bxe6 {[%clk 0:02:50]} 14. b3 {[%clk 0:02:28]}  Qe7 {[%clk 0:02:47]} 15. Qd2 {[%clk 0:02:21]}  Rad8 {[%clk 0:02:34]} 16. Bb6 {[%clk 0:02:15]}  Rd7 {[%clk 0:02:34]} 17. Bxa5 {[%clk 0:02:09]}  Nh5 {[%clk 0:02:33]} 18. e3 {[%clk 0:02:05]}  g5 {[%clk 0:02:31]} 19. Bb6 {[%clk 0:02:01]}  f4 {[%clk 0:02:31]} 20. exf4 {[%clk 0:01:55]}  gxf4 {[%clk 0:02:32]} 21. Rbe1 {[%clk 0:01:52]}  Qf7 {[%clk 0:02:30]} 22. Ne4 {[%clk 0:01:44]}  h6 {[%clk 0:02:23]} 23. Bf3 {[%clk 0:01:37]}  Bh3 {[%clk 0:02:15]} 24. Bg2 {[%clk 0:01:34]}  Be6 {[%clk 0:02:14]} 25. Bf3 {[%clk 0:01:34]}  Bh3 {[%clk 0:01:59]} 26. Bg2 {[%clk 0:01:33]}  Bxg2 {[%clk 0:02:00]} 27. Kxg2 {[%clk 0:01:33]}  f3+ {[%clk 0:02:01]} 28. Kh1 {[%clk 0:01:33]}  Qf5 {[%clk 0:02:02]} 29. Bd4 {[%clk 0:01:22]}  d5 {[%clk 0:01:54]} 30. Nc5 {[%clk 0:01:19]}  Rdf7 {[%clk 0:01:14]} 31. Bxg7 {[%clk 0:01:16]}  Nxg7 {[%clk 0:01:13]} 32. cxd5 {[%clk 0:01:11]}  cxd5 {[%clk 0:01:14]} 33. Qd4 {[%clk 0:01:07]}  Qh3 {[%clk 0:00:43]} 34. Rg1 {[%clk 0:01:06]}  Rf5 {[%clk 0:00:44]} 35. Re5 {[%clk 0:01:04]}  Rxe5 {[%clk 0:00:43]} 36. Qxe5 {[%clk 0:01:03]}  Rf5 {[%clk 0:00:44]} 37. Qb8+ {[%clk 0:00:54]}  Kh7 {[%clk 0:00:41]} 38. g4 {[%clk 0:00:54]}  Rf6 {[%clk 0:00:36]} 39. Qe5 {[%clk 0:00:41]}  Rg6 {[%clk 0:00:33]} 40. Qf4 {[%clk 0:00:41]}  h5 {[%clk 0:00:32]} 41. g5 {[%clk 0:00:34]}  Rc6 {[%clk 0:00:27]} 42. Nd3 {[%clk 0:00:31]}  Qf5 {[%clk 0:00:22]} 43. Qxf5+ {[%clk 0:00:27]}  Nxf5 {[%clk 0:00:22]} 44. Ne5 {[%clk 0:00:26]}  Rc2 {[%clk 0:00:22]} 45. Nxf3 {[%clk 0:00:26]}  Rxf2 {[%clk 0:00:22]} 46. Ne5 {[%clk 0:00:25]}  Rxa2 {[%clk 0:00:23]} 47. Rc1 {[%clk 0:00:23]}  Ne3 {[%clk 0:00:21]} 48. h4 {[%clk 0:00:18]}  Re2 {[%clk 0:00:18]} 49. Rc7+ {[%clk 0:00:17]}  Kg8 {[%clk 0:00:18]} 50. Rc8+ {[%clk 0:00:15]}  Kg7 {[%clk 0:00:18]} 51. Rc7+ {[%clk 0:00:15]}  Kf8 {[%clk 0:00:18]} 52. g6 {[%clk 0:00:11]}  Re1+ {[%clk 0:00:15]} 53. Kh2 {[%clk 0:00:10]}  Nf1+ {[%clk 0:00:16]} 54. Kg2 {[%clk 0:00:08]}  Rxe5 {[%clk 0:00:16]} 55. Kxf1 {[%clk 0:00:08]}  b5 {[%clk 0:00:17]} 56. Rc5 {[%clk 0:00:07]}  b4 {[%clk 0:00:17]} 57. Kf2 {[%clk 0:00:06]}  Kg7 {[%clk 0:00:17]} 58. Rb5 {[%clk 0:00:05]}  Re4 {[%clk 0:00:16]} 59. Rxd5 {[%clk 0:00:04]}  Kxg6 {[%clk 0:00:16]} 60. Kg3 {[%clk 0:00:01]}  Re3+ {[%clk 0:00:16]} 61. Kf4 {[%clk 0:00:01]}  Rxb3 {[%clk 0:00:17]} 62. Rd6+ {[%clk 0:00:01]}  Kg7 {[%clk 0:00:16]} 63. Kg5 {[%clk 0:00:01]}  Rg3+ {[%clk 0:00:15]} 64. Kxh5 {[%clk 0:00:02]}  b3 {[%clk 0:00:16]} 65. Rb6 {[%clk 0:00:02]}  Kh7 {[%clk 0:00:15]} 66. Rb7+ {[%clk 0:00:02]}  Kg8 {[%clk 0:00:16]} 67. Kh6 {[%clk 0:00:02]}  Kf8 {[%clk 0:00:15]} 68. h5 {[%clk 0:00:02]}  Kg8 {[%clk 0:00:16]} 69. Rb8+ {[%clk 0:00:01]}  Kf7 {[%clk 0:00:16]} 70. Rb7+ {[%clk 0:00:02]}  Kf6 {[%clk 0:00:16]} 71. Kh7 {[%clk 0:00:02]}  Rh3 {[%clk 0:00:15]} 72. h6 {[%clk 0:00:02]}  Ke6 {[%clk 0:00:15]} 73. Rb6+ {[%clk 0:00:01]}  Kd5 {[%clk 0:00:16]} 74. Kg7 {[%clk 0:00:02]}  Kc5 {[%clk 0:00:16]} 75. Rxb3 {[%clk 0:00:01]}  Rxb3 {[%clk 0:00:16]} 76. h7 {[%clk 0:00:01]}  Rb7+ {[%clk 0:00:17]} 77. Kg8 {[%clk 0:00:02]}  Rb8+ {[%clk 0:00:17]} 78. Kg7 {[%clk 0:00:02]}  Rb7+ {[%clk 0:00:18]} 79. Kg8 {[%clk 0:00:02]}  Rxh7 {[%clk 0:00:18]} 80. Kxh7 {[%clk 0:00:02]} 1/2-1/2


[Site "https://www.chess.com"]

[Event "Titled Tuesday Blitz June 14 Early 2022"]
[White "Karacsonyi, Gellert"]
[Black "Bilych, Olexiy"]
[WhiteFideId "764620"]
[BlackFideId "14156504"]
[WhiteElo "2187"]
[BlackElo "2189"]
[Result "1-0"]
[Round "10"]
[TimeControl "180+1"]
[Date "2022.06.14"]
[WhiteClock "0:01:10"]
[BlackClock "0:00:15"]

1. e4 {[%clk 0:03:00]}  e5 {[%clk 0:03:00]} 2. Nf3 {[%clk 0:03:01]}  Nc6 {[%clk 0:03:00]} 3. Bb5 {[%clk 0:03:01]}  a6 {[%clk 0:02:59]} 4. Bxc6 {[%clk 0:03:01]}  dxc6 {[%clk 0:02:59]} 5. O-O {[%clk 0:03:02]}  Bg4 {[%clk 0:02:59]} 6. h3 {[%clk 0:03:03]}  h5 {[%clk 0:03:00]} 7. d3 {[%clk 0:03:03]}  Qf6 {[%clk 0:02:56]} 8. Nbd2 {[%clk 0:03:02]}  g5 {[%clk 0:02:54]} 9. Nc4 {[%clk 0:03:02]}  Qg7 {[%clk 0:02:46]} 10. hxg4 {[%clk 0:02:40]}  hxg4 {[%clk 0:02:46]} 11. Nxg5 {[%clk 0:02:41]}  Qh6 {[%clk 0:02:14]} 12. f4 {[%clk 0:02:34]}  Bc5+ {[%clk 0:02:01]} 13. Be3 {[%clk 0:02:26]}  exf4 {[%clk 0:00:51]} 14. Bxc5 {[%clk 0:01:52]}  Qxg5 {[%clk 0:00:51]} 15. Bd4 {[%clk 0:01:39]}  Rh7 {[%clk 0:00:28]} 16. Qd2 {[%clk 0:01:16]}  g3 {[%clk 0:00:23]} 17. Rxf4 {[%clk 0:01:16]}  Qh6 {[%clk 0:00:18]} 18. Kf1 {[%clk 0:01:15]}  Nf6 {[%clk 0:00:15]} 19. Rxf6 {[%clk 0:01:10]} 1-0


[Site "https://www.chess.com"]